fUSD/lending_fUSD_20251129
["ID","MTS","AMOUNT","RATE_DAILY","PERIOD"]
[395050633,1764375047066,-562.0,0.00016397,2]
[395050634,1764375047075,-6504.0,0.00016397,2]
[395050635,1764375047085,-168.0,0.000164,2]
[395050636,1764375047095,-168.0,0.00016418,2]
[395050637,1764375047105,-506.60742957,0.00016421,2]
[395050638,1764375047116,-1000.0,0.00016421,2]
[395050639,1764375047125,-150.0,0.00016438,2]
[395050640,1764375047135,-600.0,0.00016438,2]
[395050641,1764375047144,-2753.55,0.00016438,2]
[395050642,1764375047154,-13820.30642339,0.00016447,2]
[395050643,1764375047166,-4661.1954097,0.00016447,2]
[395050644,1764375047175,-232.19,0.00016461,2]
[395050645,1764375047184,-420.0,0.00016491,2]
[395050646,1764375047194,-250.0,0.00016504,2]
[395050647,1764375047204,-444.32173984,0.00016504,2]
[395050648,1764375047214,-255.20366,0.0001654,2]
[395050649,1764375047223,-150.0,0.00016575,2]
[395050650,1764375047232,-150.0,0.00016597,2]
[395050651,1764375047241,-250.0,0.00016597,2]
[395050652,1764375047251,-209.336,0.00016597,2]
[395050653,1764375047260,-250.0,0.00016597,2]
[395050654,1764375047270,-219.525,0.00016597,2]
[395050655,1764375047279,-154.434,0.00016597,2]
[395050656,1764375047288,-150.323,0.00016597,2]
[395050657,1764375047298,-1216.756,0.00016597,2]
[395050658,1764375047307,-823.0,0.00016597,2]
[395050659,1764375047317,-660.0,0.00016597,2]
[395050660,1764375047326,-18481.50183309,0.00016598,2]
[395050661,1764375047335,-1000.0,0.00016599,2]
[395050662,1764375047344,-752.47471946,0.0001666,2]
[395050663,1764375047354,-291.31,0.00016696,2]
[395050664,1764375047363,-150.0,0.00016712,2]
[395050665,1764375047372,-600.0,0.00016712,2]
[395050666,1764375047381,-165.62,0.00016722,2]
[395050667,1764375047390,-232.21,0.00016735,2]
[395050668,1764375047401,-18481.50183309,0.00016749,2]
[395050669,1764375047415,-168.0,0.00016769,2]
[395050670,1764375047425,-168.0,0.00016776,2]
[395050671,1764375047434,-255.20367,0.0001679,2]
[395050672,1764375047443,-300.0,0.000168,2]
[395050673,1764375047453,-300.0,0.000168,2]
[395050674,1764375047462,-300.0,0.000168,2]
[395050675,1764375047471,-300.0,0.000168,2]
[395050676,1764375047480,-150.0,0.00016849,2]
[395050677,1764375047495,-300.0,0.000169,2]
[395050678,1764375047504,-300.0,0.000169,2]
[395050679,1764375047513,-300.0,0.000169,2]
[395050680,1764375047522,-300.0,0.000169,2]
[395050681,1764375047532,-300.0,0.000169,2]
[395050682,1764375047541,-300.0,0.000169,2]
[395050683,1764375047550,-300.0,0.000169,2]
[395050684,1764375047559,-300.0,0.000169,2]
[395050685,1764375047569,-300.0,0.000169,2]
[395050686,1764375047578,-300.0,0.000169,2]
[395050687,1764375047588,-211.35095204,0.000169,2]
[395050688,1764375047597,-960.23167264,0.000169,2]
[395050689,1764375047606,-18481.50183309,0.000169,2]
[395050690,1764375047616,-4792.06963947,0.000169,2]
[395050691,1764375047625,-611.82969491,0.00016968,2]
[395050692,1764375047634,-150.0,0.00016986,2]
[395050693,1764375047644,-600.0,0.00016986,2]
[395050694,1764375047653,-300.0,0.0001699,2]
[395050695,1764375047662,-300.0,0.0001699,2]
[395050696,1764375047671,-300.0,0.0001699,2]
[395050697,1764375047680,-300.0,0.0001699,2]
[395050698,1764375047690,-300.0,0.0001699,2]
[395050699,1764375047699,-300.0,0.00016998,2]
[395050700,1764375047708,-1218.45664032,0.00016999,5]
[395050701,1764375047718,-500.0,0.00016999,2]
[395050702,1764375047727,-500.0,0.00016999,2]
[395050703,1764375047737,-500.0,0.00016999,2]
[395050704,1764375047746,-500.0,0.00016999,2]
[395050705,1764375047756,-500.0,0.00016999,2]
[395050706,1764375047765,-500.0,0.00016999,2]
[395050707,1764375047776,-500.0,0.00016999,2]
[395050708,1764375047786,-500.0,0.00016999,2]
[395050709,1764375047795,-500.0,0.00016999,2]
[395050710,1764375047804,-500.0,0.00016999,2]
[395050711,1764375047814,-500.0,0.00016999,2]
[395050712,1764375047823,-530.31019318,0.00016999,2]
[395050713,1764375047832,-500.0,0.00016999,2]
[395050714,1764375047842,-500.0,0.00016999,2]
[395050715,1764375047852,-500.0,0.00016999,2]
[395050716,1764375047862,-559.9560495,0.00016999,2]
[395050717,1764375047871,-500.0,0.00016999,2]
[395050718,1764375047884,-500.0,0.00016999,2]
[395050719,1764375047894,-500.0,0.00016999,2]
[395050720,1764375047903,-311.1,0.00017,2]
[395050721,1764375047913,-277.35679052,0.00017,2]
[395050722,1764375047923,-151.0,0.00017,2]
[395050723,1764375047932,-41553.73822032,0.00017,2]
[395050724,1764375048961,-85404.46759652,0.00017,2]
[395050725,1764375048972,-309.14168424,0.00017,2]
[395050736,1764376108798,8928.93541105,0.00015,4]
[395050740,1764376119679,5379.75942883,0.0001,2]
[395050765,1764376232414,-463.72,0.00015076,2]
[395050766,1764376232425,-489.59026791,0.00015229,2]
[395050767,1764376232436,-284.75573209,0.00015229,2]
[395050768,1764376232451,-25.55426791,0.00015229,2]
[395050769,1764376232464,-189.44573209,0.00015229,2]
[395050770,1764376232473,-215.44576391,0.00015288,2]
[395050771,1764376232485,-12.45252115,0.00015288,2]
[395050773,1764376232494,-150.0,0.00015288,2]
[395050775,1764376232503,-150.0,0.00015288,2]
[395050777,1764376232512,-133.83321647,0.00015288,2]
[395050779,1764376232525,-16.16678353,0.00015288,2]
[395050781,1764376232535,-150.0,0.00015288,2]
[395050782,1764376232544,-150.0,0.00015288,2]
[395050784,1764376232554,-1.79321647,0.0001544,2]
[395050787,1764376232565,-1355.39517544,0.0001544,2]
[395050791,1764376232600,-2206.16140809,0.0001544,2]
[395050793,1764376232610,-300.0,0.00015471,2]
[395050795,1764376232619,-1200.0,0.00015472,2]
[395050797,1764376232628,-300.0,0.00015472,2]
[395050799,1764376232637,-1200.0,0.00015472,2]
[395050801,1764376232646,-300.0,0.00015472,2]
[395050802,1764376232657,-437.33412731,0.00015473,2]
[395050804,1764376232666,-952.74214693,0.00015473,2]
[395050807,1764376232677,-1599.22750367,0.00015473,2]
[395050809,1764376232688,-469.75597958,0.00015473,2]
[395050811,1764376232703,-541.72854367,0.00015473,2]
[395050813,1764376232713,-300.0,0.00015531,2]
[395050815,1764376232722,-553.64373807,0.00015531,2]
[395050817,1764376232731,-8.47497431,0.00015531,2]
[395050819,1764376232750,-491.52502569,0.00015531,2]
[395050821,1764376232759,-500.0,0.00015531,2]
[395050823,1764376232769,-500.0,0.00015531,2]
[395050824,1764376232777,-500.0,0.00015531,2]
[395050826,1764376232786,-500.0,0.00015531,2]
[395050828,1764376232796,-500.0,0.00015531,2]
[395050830,1764376232805,-500.0,0.00015531,2]
[395050832,1764376232813,-500.0,0.00015531,2]
[395050834,1764376232822,-500.0,0.00015531,2]
[395050836,1764376232831,-500.0,0.00015531,2]
[395050838,1764376232840,-500.0,0.00015531,2]
[395050840,1764376232849,-500.0,0.00015531,2]
[395050842,1764376232857,-386.84530913,0.00015531,2]
[395050846,1764376232887,-113.15469087,0.00015531,2]
[395050847,1764376232896,-500.0,0.00015531,2]
[395050849,1764376232905,-21.31659976,0.00015531,2]
[395050852,1764376232916,-478.68340024,0.00015531,2]
[395050853,1764376232925,-500.0,0.00015531,2]
[395050855,1764376232935,-500.0,0.00015531,2]
[395050857,1764376232943,-370.07416827,0.00015531,2]
[395050867,1764376233029,-129.92583173,0.00015531,2]
[395050869,1764376233038,-500.0,0.00015531,2]
[395050871,1764376233047,-500.0,0.00015531,2]
[395050873,1764376233056,-500.0,0.00015531,2]
[395050874,1764376233065,-500.0,0.00015531,2]
[395050876,1764376233074,-500.0,0.00015531,2]
[395050878,1764376233083,-500.0,0.00015531,2]
[395050880,1764376233093,-229.83514642,0.00015531,2]
[395050882,1764376233102,-267.46074303,0.00015531,2]
[395050884,1764376233111,-151.0,0.00015531,2]
[395050886,1764376233120,-151.0,0.00015531,2]
[395050888,1764376233129,-1491.53744342,0.00015539,5]
[395050890,1764376233138,-160.25373852,0.00015539,2]
[395050892,1764376233146,-500.0,0.00015539,2]
[395050894,1764376233156,-500.0,0.00015539,2]
[395050896,1764376233166,-500.0,0.00015539,2]
[395050898,1764376233177,-500.0,0.00015539,2]
[395050900,1764376233186,-500.0,0.00015539,2]
[395050902,1764376233195,-4.4057833,0.00015539,2]
[395050911,1764376239736,-604.12692846,0.00015539,2]
[395050912,1764376239746,-500.0,0.00015539,2]
[395050913,1764376239756,-193.89294439,0.00015539,2]
[395050914,1764376239767,-306.10705561,0.00015539,2]
[395050915,1764376239777,-500.0,0.00015539,2]
[395050916,1764376239786,-98.29644439,0.00015539,2]
[395050919,1764376241624,-401.70355561,0.00015539,2]
[395050920,1764376241634,-117.27908439,0.00015539,2]
[395050921,1764376242138,-382.72091561,0.00015539,2]
[395050922,1764376242148,-500.0,0.00015539,2]
[395050923,1764376242157,-500.0,0.00015539,2]
[395050924,1764376242166,-118.86138439,0.00015539,2]
[395050925,1764376242178,-381.13861561,0.00015539,2]
[395050926,1764376242188,-166.06138441,0.00015539,2]
[395050927,1764376242199,-333.93861559,0.00015539,2]
[395050928,1764376242209,-302.3613844,0.00015539,2]
[395050933,1764376246471,-249.13421491,0.00015539,2]
[395050934,1764376246482,-500.0,0.00015539,2]
[395050935,1764376246492,-500.0,0.00015539,2]
[395050936,1764376246501,-875.63378509,0.00015632,2]
[395050937,1764376246540,-2687.82038869,0.00015632,2]
[395050938,1764376246551,-500.0,0.00015773,2]
[395050939,1764376246561,-500.0,0.00015773,2]
[395050940,1764376246571,-500.0,0.00015773,2]
[395050941,1764376246581,-314.34802443,0.00015773,2]
[395050942,1764376246590,-500.0,0.00015773,2]
[395050943,1764376246600,-503.31842824,0.00015773,2]
[395050944,1764376246610,-500.0,0.00015773,2]
[395050945,1764376246620,-500.0,0.00015773,2]
[395050946,1764376246630,-295.51045209,0.00015773,2]
[395050947,1764376246639,-305.6883248,0.00015773,2]
[395050948,1764376246648,-500.0,0.00015773,2]
[395050949,1764376246657,-500.0,0.00015773,2]
[395050950,1764376246666,-3563.45417378,0.0001579,2]
[395050951,1764376246676,-2227.79207945,0.00015791,2]
[395050953,1764376246686,-259.08,0.00015791,2]
[395050955,1764376246695,-38.01462681,0.00015791,2]
[395050965,1764376918644,174.78,0.00014888,2]
[395050966,1764377071664,166.66,0.00013951,2]
[395050967,1764377071875,166.66,0.00014245,2]
[395050968,1764377072114,166.66,0.00014539,2]
[395050969,1764377072302,166.66,0.00014832,2]
[395050975,1764377160754,200.0,0.00014609,2]
[395050976,1764377185087,1949.06592416,0.00014624,2]
[395050977,1764377185116,10632.81407584,0.00014624,2]
[395050981,1764377299190,150.0,0.00014578,2]
[395051064,1764377426020,150.0,0.00014652,2]
[395051080,1764377432926,-250.0,0.00015013,2]
[395051081,1764377432941,-247.8255487,0.00015066,2]
[395051082,1764377432956,-150.0,0.00015066,2]
[395051083,1764377432971,-227.44220096,0.00015066,2]
[395051084,1764377432986,-150.0,0.00015066,2]
[395051085,1764377433001,-158.27867006,0.00015066,2]
[395051086,1764377433016,-999.0,0.00015094,3]
[395051087,1764377433031,-166.66,0.00015126,2]
[395051088,1764377433047,-500.0,0.00015129,2]
[395051089,1764377433061,-1200.0,0.0001528,2]
[395051090,1764377433077,-1148.36,0.00015281,2]
[395051091,1764377433092,-300.0,0.00015339,2]
[395051092,1764377433106,-300.0,0.00015339,2]
[395051093,1764377433121,-2494.4179217,0.0001534,2]
[395051094,1764377433137,-1138.9507871,0.0001534,2]
[395051095,1764377433151,-1814.4187894,0.0001534,2]
[395051096,1764377433165,-222.65612674,0.00015381,2]
[395051097,1764377433188,-166.66,0.0001542,2]
[395051098,1764377433210,-1442.81918711,0.00015422,2]
[395051099,1764377433231,-300.0,0.0001543,2]
[395051100,1764377433251,-500.0,0.00015431,2]
[395051101,1764377433271,-500.0,0.00015431,2]
[395051102,1764377433292,-500.0,0.00015431,2]
[395051103,1764377433311,-500.0,0.00015431,2]
[395051104,1764377433329,-500.0,0.00015431,2]
[395051105,1764377433347,-500.0,0.00015431,2]
[395051106,1764377433366,-500.0,0.00015431,2]
[395051107,1764377433382,-500.0,0.00015431,2]
[395051108,1764377433398,-500.0,0.00015431,2]
[395051109,1764377433415,-500.0,0.00015431,2]
[395051110,1764377433431,-500.0,0.00015431,2]
[395051111,1764377433447,-500.0,0.00015431,2]
[395051112,1764377433464,-200.0,0.00015431,2]
[395051113,1764377433480,-500.0,0.00015431,2]
[395051114,1764377433495,-200.0,0.00015431,2]
[395051115,1764377433510,-619.477,0.00015439,2]
[395051116,1764377433526,-386.04691951,0.00015439,2]
[395051117,1764377433541,-500.0,0.00015439,2]
[395051118,1764377433556,-456.50363464,0.00015439,2]
[395051119,1764377433571,-600.0,0.0001544,2]
[395051120,1764377433588,-500.0,0.00015473,2]
[395051121,1764377433603,-501.56205241,0.00015473,2]
[395051122,1764377433618,-557.64011344,0.00015473,2]
[395051123,1764377433634,-500.0,0.00015473,2]
[395051124,1764377433649,-500.0,0.00015473,2]
[395051125,1764377433670,-500.0,0.00015473,2]
[395051126,1764377433691,-500.0,0.00015473,2]
[395051127,1764377433711,-2494.41792164,0.00015513,2]
[395051128,1764377433730,-1814.41878933,0.00015513,2]
[395051129,1764377433748,-500.0,0.00015539,2]
[395051130,1764377433771,-500.0,0.00015539,2]
[395051131,1764377433795,-150.0,0.00015624,2]
[395051132,1764377433814,-1154.53667,0.0001563,2]
[395051133,1764377433831,-151.0,0.00015651,2]
[395051134,1764377433847,-24346.8685915,0.00015654,2]
[395051135,1764377433864,-1461.9731992,0.00015654,2]
[395051136,1764377433880,-5175.20762459,0.00015654,2]
[395051137,1764377433901,-701.62574342,0.00015654,2]
[395051138,1764377433957,-1784.16640688,0.00015654,2]
[395051139,1764377434033,-10399.2064641,0.00015654,2]
[395051140,1764377434058,-1189.407222,0.00015654,2]
[395051141,1764377434075,-651.51132182,0.00015654,2]
[395051142,1764377434113,-1364.71260208,0.00015654,2]
[395051143,1764377434131,-345.4711026,0.00015654,2]
[395051144,1764377437639,-407.22196959,0.00015654,2]
[395051145,1764377437745,-1023.47056,0.00015654,2]
[395051146,1764377437800,-65813.39451622,0.00015654,2]
[395051147,1764377437809,-161.68061422,0.00015673,2]
[395051148,1764377437819,-500.0,0.00015673,2]
[395051149,1764377437828,-500.0,0.00015673,2]
[395051150,1764377437838,-2494.41792164,0.00015687,2]
[395051151,1764377437847,-1814.41878933,0.00015687,2]
[395051152,1764377437857,-151.0,0.00015695,2]
[395051153,1764377437866,-500.0,0.00015695,2]
[395051154,1764377437876,-151.0,0.00015695,2]
[395051155,1764377437885,-500.0,0.00015695,2]
[395051156,1764377437895,-500.0,0.00015695,2]
[395051157,1764377437904,-500.0,0.00015695,2]
[395051159,1764377437914,-500.0,0.00015695,2]
[395051161,1764377437923,-500.0,0.00015695,2]
[395051163,1764377437932,-500.0,0.00015695,2]
[395051165,1764377437941,-500.0,0.00015695,2]
[395051167,1764377437950,-500.0,0.00015695,2]
[395051168,1764377437959,-553.64373807,0.00015695,2]
[395051169,1764377437968,-500.0,0.00015695,2]
[395051171,1764377437978,-500.0,0.00015695,2]
[395051172,1764377437988,-500.0,0.00015695,2]
[395051173,1764377437997,-500.0,0.00015695,2]
[395051174,1764377438006,-500.0,0.00015695,2]
[395051175,1764377438016,-500.0,0.00015695,2]
[395051176,1764377438026,-500.0,0.00015695,2]
[395051177,1764377438036,-500.0,0.00015695,2]
[395051178,1764377438045,-500.0,0.00015695,2]
[395051179,1764377438055,-500.0,0.00015695,2]
[395051180,1764377438065,-500.0,0.00015695,2]
[395051181,1764377438074,-500.0,0.00015695,2]
[395051182,1764377438084,-500.0,0.00015695,2]
[395051183,1764377438093,-500.0,0.00015695,2]
[395051184,1764377438103,-500.0,0.00015695,2]
[395051185,1764377438112,-578.20924308,0.00015695,2]
[395051186,1764377438122,-250.0,0.00015695,2]
[395051187,1764377438132,-267.9696451,0.00015695,2]
[395051188,1764377438141,-500.0,0.00015695,2]
[395051189,1764377438150,-500.0,0.00015695,2]
[395051190,1764377438160,-500.0,0.00015695,2]
[395051191,1764377438171,-500.0,0.00015695,2]
[395051192,1764377438180,-500.0,0.00015695,2]
[395051193,1764377438190,-500.0,0.00015695,2]
[395051194,1764377438199,-500.0,0.00015695,2]
[395051195,1764377438209,-500.0,0.00015695,2]
[395051196,1764377438218,-500.0,0.00015695,2]
[395051197,1764377438228,-500.0,0.00015695,2]
[395051198,1764377438238,-500.0,0.00015695,2]
[395051199,1764377438247,-376.05586692,0.00015695,2]
[395051200,1764377438256,-620.0,0.00015695,2]
[395051201,1764377438266,-500.0,0.00015695,2]
[395051202,1764377438276,-500.0,0.00015695,2]
[395051203,1764377438285,-500.0,0.00015695,2]
[395051204,1764377438299,-500.0,0.00015695,2]
[395051205,1764377438310,-500.0,0.00015695,2]
[395051206,1764377438322,-500.0,0.00015695,2]
[395051207,1764377438331,-500.0,0.00015695,2]
[395051208,1764377438341,-500.0,0.00015695,2]
[395051209,1764377438351,-500.0,0.00015695,2]
[395051210,1764377438360,-500.0,0.00015695,2]
[395051211,1764377438370,-500.0,0.00015695,2]
[395051212,1764377438385,-267.46074303,0.00015695,2]
[395051213,1764377438398,-250.0,0.00015695,2]
[395051214,1764377438415,-300.0,0.00015695,2]
[395051215,1764377438425,-382.99,0.00015705,2]
[395051216,1764377438434,-600.0,0.00015714,2]
[395051217,1764377438443,-200.0,0.00015791,2]
[395051218,1764377438453,-2494.41792164,0.0001586,2]
[395051219,1764377438463,-1814.41878933,0.0001586,2]
[395051220,1764377438472,-1053.25152797,0.00015888,2]
[395051221,1764377438482,-500.0,0.00015895,2]
[395051222,1764377438492,-500.0,0.00015895,2]
[395051223,1764377438502,-501.38308953,0.00015895,2]
[395051224,1764377438511,-500.0,0.00015895,2]
[395051225,1764377438521,-500.0,0.00015895,2]
[395051226,1764377438532,-500.0,0.00015895,2]
[395051227,1764377438542,-200.0,0.00015898,2]
[395051228,1764377438552,-393.60071457,0.000159,2]
[395051229,1764377438562,-824.13365986,0.000159,2]
[395051230,1764377438571,-500.0,0.00015973,2]
[395051231,1764377438582,-502.81715795,0.00015973,2]
[395051232,1764377438591,-500.0,0.00015973,2]
[395051233,1764377438601,-500.0,0.00015973,2]
[395051234,1764377438611,-337.06854993,0.00015973,2]
[395051235,1764377438620,-500.0,0.00015973,2]
[395051236,1764377438629,-500.0,0.00015973,2]
[395051237,1764377438639,-500.0,0.00015973,2]
[395051238,1764377438649,-500.0,0.00015979,2]
[395051239,1764377438659,-382.99,0.00015979,2]
[395051240,1764377438669,-600.0,0.00015988,2]
[395051241,1764377438679,-151.0,0.00015997,2]
[395051242,1764377438689,-500.0,0.00015999,2]
[395051243,1764377438699,-260712.67245,0.00016,2]
[395051244,1764377438709,-151.0,0.00016,2]
[395051245,1764377438720,-151.0,0.00016,2]
[395051246,1764377438730,-151.0,0.00016,2]
[395051247,1764377438740,-151.0,0.00016,2]
[395051248,1764377438750,-151.0,0.00016,2]
[395051249,1764377438760,-151.0,0.00016,2]
[395051250,1764377438769,-151.0,0.00016,2]
[395051251,1764377438780,-151.0,0.00016,2]
[395051252,1764377438790,-151.0,0.00016,2]
[395051253,1764377438801,-151.0,0.00016,2]
[395051254,1764377438811,-500.0,0.00016021,2]
[395051255,1764377438821,-1000.0,0.00016021,2]
[395051256,1764377438832,-500.0,0.00016021,2]
[395051257,1764377438842,-2494.41792164,0.00016033,2]
[395051258,1764377438852,-1814.41878933,0.00016033,2]
[395051259,1764377438862,-9999.99,0.00016116,2]
[395051260,1764377439117,-14975.52,0.00016116,2]
[395051261,1764377439149,-3356.0,0.00016129,2]
[395051262,1764377439159,-150.0,0.00016182,2]
[395051263,1764377439169,-2494.41792164,0.00016207,2]
[395051264,1764377439178,-1814.41878933,0.00016207,2]
[395051265,1764377439189,-500.0,0.00016221,2]
[395051266,1764377439199,-267.32414549,0.00016243,2]
[395051267,1764377439208,-642.94,0.00016243,2]
[395051268,1764377439218,-382.99,0.00016253,2]
[395051269,1764377439228,-600.0,0.00016262,2]
[395051270,1764377439237,-331.0821075,0.0001629,2]
[395051271,1764377439247,-2494.41792164,0.0001638,2]
[395051272,1764377439257,-1814.41878933,0.0001638,2]
[395051273,1764377439266,-1053.25152797,0.00016394,2]
[395051274,1764377439276,-236.64564728,0.00016438,2]
[395051275,1764377439287,-2880.01,0.00016438,2]
[395051276,1764377439298,-216.87184607,0.00016438,2]
[395051277,1764377439307,-150.0,0.00016476,2]
[395051278,1764377439320,-6504.0,0.00016476,2]
[395051279,1764377439329,-300.0,0.00016514,2]
[395051280,1764377439339,-500.0,0.00016521,2]
[395051281,1764377439348,-500.0,0.00016527,2]
[395051282,1764377439358,-382.99,0.00016527,2]
[395051283,1764377439367,-291.45,0.00016536,2]
[395051284,1764377439376,-2494.41792164,0.00016553,2]
[395051285,1764377439386,-1670.52974864,0.00016553,2]
[395051286,1764377439403,-143.88904069,0.00016553,2]
[395051287,1764377439413,-498.23379974,0.0001663,2]
[395051288,1764377439424,-252.24133951,0.0001663,2]
[395051305,1764377445930,-824.13365985,0.000159,2]
[395051306,1764377445943,-824.13365985,0.000159,2]
[395051307,1764377445953,-270.23284366,0.00015972,2]
[395051308,1764377445964,-404.06153075,0.0001663,2]
[395051309,1764377445974,-9804.56120529,0.00016644,2]
[395051324,1764378316513,207.58,7.513e-05,2]
[395051603,1764378631642,-200.0,0.00014928,2]
[395051604,1764378631652,-359.2491887,0.00015033,2]
[395051605,1764378631700,-136.3318113,0.00015033,2]
[395051606,1764378631710,-195.51,0.00015041,2]
[395051607,1764378631719,-25.56992582,0.00015139,2]
[395051608,1764378631850,-177.85569029,0.00015139,2]
[395051609,1764378631860,-151.0,0.00015237,2]
[395051610,1764378631870,-220.0,0.00015238,2]
[395051611,1764378631879,-300.0,0.00015238,2]
[395051612,1764378631889,-1200.0,0.00015238,2]
[395051613,1764378631899,-541.0,0.00015239,2]
[395051614,1764378631909,-290.0,0.00015239,2]
[395051615,1764378631919,-2623.2006,0.0001524,2]
[395051616,1764378631929,-1164.61252955,0.0001524,2]
[395051617,1764378631938,-1604.34124631,0.0001524,2]
[395051618,1764378631951,-1000.0,0.0001524,2]
[395051619,1764378631960,-57132.89410472,0.0001524,2]
[395051620,1764378631972,-352345.98141111,0.0001524,2]
[395051621,1764378631984,-279443.55388417,0.0001524,2]
[395051622,1764378631994,-1874.3512,0.0001524,2]
[395051623,1764378632003,-150.0,0.00015288,2]
[395051624,1764378632013,-150.0,0.00015288,2]
[395051625,1764378632023,-150.0,0.00015288,2]
[395051626,1764378632032,-150.0,0.00015288,2]
[395051627,1764378632042,-150.0,0.00015288,2]
[395051629,1764378632051,-500.0,0.00015331,2]
[395051631,1764378632062,-189.16299056,0.00015339,2]
[395051633,1764378632071,-562.34115947,0.00015339,2]
[395051635,1764378632081,-262.36450666,0.00015339,2]
[395051637,1764378632090,-500.0,0.00015339,2]
[395051639,1764378632100,-500.0,0.00015339,2]
[395051641,1764378632109,-500.0,0.00015339,2]
[395051643,1764378632119,-500.0,0.00015339,2]
[395051645,1764378632128,-595.8695848,0.00015339,2]
[395051647,1764378632138,-500.0,0.00015339,2]
[395051649,1764378632147,-500.0,0.00015339,2]
[395051651,1764378632157,-500.0,0.00015339,2]
[395051689,1764378632498,-500.0,0.00015339,2]
[395051693,1764378632526,-500.0,0.00015339,2]
[395051695,1764378632535,-500.0,0.00015339,2]
[395051697,1764378632545,-500.0,0.00015339,2]
[395051699,1764378632554,-500.0,0.00015339,2]
[395051701,1764378632563,-500.0,0.00015339,2]
[395051703,1764378632573,-500.0,0.00015339,2]
[395051705,1764378632582,-500.0,0.00015339,2]
[395051707,1764378632591,-250.0,0.00015339,2]
[395051709,1764378632600,-500.0,0.00015339,2]
[395051711,1764378632610,-640.75025313,0.00015339,2]
[395051713,1764378632618,-361.73,0.00015339,2]
[395051715,1764378632627,-532.03622096,0.00015339,2]
[395051717,1764378632636,-500.0,0.00015339,2]
[395051719,1764378632646,-500.0,0.00015339,2]
[395051720,1764378632655,-500.0,0.00015339,2]
[395051722,1764378632664,-500.0,0.00015339,2]
[395051724,1764378632675,-500.0,0.00015339,2]
[395051727,1764378632686,-500.0,0.00015339,2]
[395051728,1764378632695,-521.68557809,0.00015339,2]
[395051730,1764378632704,-500.0,0.00015339,2]
[395051732,1764378632715,-500.0,0.00015339,2]
[395051735,1764378632725,-500.0,0.00015339,2]
[395051736,1764378632734,-600.0,0.0001534,2]
[395051738,1764378632744,-500.0,0.00015373,2]
[395051741,1764378632753,-1164.61252955,0.00015424,2]
[395051742,1764378632763,-1604.34124625,0.00015424,2]
[395051745,1764378632773,-331.0821075,0.00015439,2]
[395051746,1764378632782,-1164.61252955,0.00015609,2]
[395051748,1764378632792,-1604.34124625,0.00015609,2]
[395051750,1764378632802,-6504.0,0.00015612,2]
[395051753,1764378632811,-1193.0,0.00015612,2]
[395051754,1764378632821,-361.73,0.00015613,2]
[395051757,1764378632830,-291.45,0.00015614,2]
[395051759,1764378632840,-1164.61252955,0.00015793,2]
[395051760,1764378632850,-1604.34124625,0.00015793,2]
[395051762,1764378632859,-150.0,0.00015854,2]
[395051764,1764378632868,-150.0,0.00015854,2]
[395051766,1764378632878,-500.0,0.00015879,2]
[395051768,1764378632887,-361.73,0.00015887,2]
[395051770,1764378632896,-267.46074303,0.00015897,2]
[395051772,1764378632906,-250.0,0.00015897,2]
[395051774,1764378632917,-250.0,0.00015897,2]
[395051776,1764378632926,-250.0,0.00015897,2]